[Event "44th Chess Olympiad Open 2022"]
[Site "Chennai"]
[Date "2022.07.31"]
[Round "3.80"]
[White "Egbe, Kossi Thierry"]
[Black "Hair, Justin M"]
[Result "0-1"]
[WhiteElo "1703"]
[BlackElo "1505"]
[Annotator "NA"]
[PlyCount "76"]
[EventDate "2022.??.??"]
[TimeControl "60"]

1. e4 {[%emt 0:00:01]} e6 {[%emt 0:00:10]} 2. d4 {[%emt 0:00:07]} d5 {[%emt 0:
00:00]} 3. exd5 {[%emt 0:00:03]} exd5 {[%emt 0:00:15]} 4. c4 {[%emt 0:00:03]}
c6 {[%emt 0:02:30]} 5. c5 {[%emt 0:01:16]} Nf6 {[%emt 0:01:27]} 6. Bd3 {
[%emt 0:00:23]} g6 {[%emt 0:01:22]} 7. Nf3 {[%emt 0:00:46]} Bg7 {[%emt 0:00:51]
} 8. O-O {[%emt 0:00:23]} O-O {[%emt 0:01:00]} 9. h3 {[%emt 0:00:44]} b6 {
[%emt 0:03:00]} 10. b4 {[%emt 0:01:04]} Ba6 {[%emt 0:05:13]} 11. Nc3 {[%emt 0:
00:00]} Bxd3 {[%emt 0:05:52]} 12. Qxd3 {[%emt 0:00:15]} b5 {[%emt 0:00:41]} 13.
Ne5 {[%emt 0:00:57]} Nfd7 {[%emt 0:05:33]} 14. f4 {[%emt 0:01:00]} Nxe5 {
[%emt 0:05:03]} 15. fxe5 {[%emt 0:00:24]} a5 {[%emt 0:03:37]} 16. bxa5 {
[%emt 0:00:36]} Rxa5 {[%emt 0:01:53]} 17. a4 {[%emt 0:00:50]} bxa4 {[%emt 0:00:
00]} 18. Rxa4 {[%emt 0:00:18]} Rxa4 {[%emt 0:00:51]} 19. Nxa4 {[%emt 0:00:12]}
Nd7 {[%emt 0:00:49]} 20. Qa6 {[%emt 0:01:14]} Qh4 {[%emt 0:06:18]} 21. Rd1 {
[%emt 0:01:59]} Nb8 {[%emt 0:03:30]} 22. Qa7 {[%emt 0:01:25]} f6 {[%emt 0:00:
00]} 23. e6 {[%emt 0:03:11]} f5 {[%emt 0:01:30]} 24. Be3 {[%emt 0:01:26]} Qe4 {
[%emt 0:03:14]} 25. Bf2 {[%emt 0:00:16]} Qxe6 {[%emt 0:01:58]} 26. Re1 {
[%emt 0:00:23]} Qd7 {[%emt 0:03:41]} 27. Qa8 {[%emt 0:04:44]} Qc7 {[%emt 0:00:
00]} 28. Re6 {[%emt 0:01:46]} Qf4 {[%emt 0:04:45]} 29. g3 {[%emt 0:04:24]} Qd2
{[%emt 0:03:26]} 30. Qa7 {[%emt 0:06:13]} Bxd4 {[%emt 0:01:04]} 31. Bxd4 {
[%emt 0:00:27]} Qxd4+ {[%emt 0:00:13]} 32. Kf1 {[%emt 0:02:39]} f4 {[%emt 0:00:
00]} 33. g4 {[%emt 0:00:39]} f3 {[%emt 0:00:51]} 34. Re7 {[%emt 0:00:37]} Qd3+
{[%emt 0:01:11]} 35. Kf2 {[%emt 0:01:49]} Qd4+ {[%emt 0:05:18]} 36. Kf1 {
[%emt 0:40:57]} f2 {[%emt 0:00:50]} 37. Rf7 {[%emt 0:01:59]} Qd1+ {[%emt 0:00:
00]} 38. Kg2 {[%emt 0:02:09]} Qg1+ {[%emt 0:01:01]} 0-1

[Event "44th Chess Olympiad Open 2022"]
[Site "Chennai"]
[Date "2022.07.31"]
[Round "3.80"]
[White "Conhoff, David"]
[Black "Strovsky, Mikhail"]
[Result "0-1"]
[WhiteElo "1460"]
[BlackElo "2158"]
[Annotator "RC"]
[PlyCount "88"]
[EventDate "2022.??.??"]
[TimeControl "60"]

1. d4 {[%emt 0:00:04]} d5 {[%emt 0:00:05]} 2. Nf3 {[%emt 0:00:24]} e6 {[%emt 0:
00:00]} 3. Bf4 {[%emt 0:01:01]} Nf6 {[%emt 0:00:10]} 4. h3 {[%emt 0:01:16]} c5
{[%emt 0:00:42]} 5. e3 {[%emt 0:04:05]} Nc6 {[%emt 0:00:48]} 6. c3 {[%emt 0:00:
00]} c4 {[%emt 0:00:42]} 7. a4 {[%emt 0:05:26]} Be7 {[%emt 0:00:50]} 8. Be2 {
[%emt 0:01:44]} O-O {[%emt 0:00:16]} 9. O-O {[%emt 0:01:04]} Re8 {[%emt 0:00:
00]} 10. Qc2 {[%emt 0:04:40]} Qb6 {[%emt 0:06:19]} 11. Nbd2 {[%emt 0:06:23]}
Bd7 {[%emt 0:01:26]} 12. b3 {[%emt 0:05:49]} cxb3 {[%emt 0:01:30]} 13. Nxb3 {
[%emt 0:01:27]} Rac8 {[%emt 0:02:23]} 14. a5 {[%emt 0:05:33]} Qd8 {[%emt 0:00:
00]} 15. Bd3 {[%emt 0:04:05]} Nb4 {[%emt 0:01:13]} 16. Qd2 {[%emt 0:03:32]}
Nxd3 {[%emt 0:00:24]} 17. Qxd3 {[%emt 0:00:51]} a6 {[%emt 0:01:06]} 18. Rfb1 {
[%emt 0:01:32]} Bb5 {[%emt 0:00:31]} 19. Qd1 {[%emt 0:00:52]} Rxc3 {[%emt 0:00:
00]} 20. Ne5 {[%emt 0:05:26]} Nd7 {[%emt 0:02:34]} 21. Rc1 {[%emt 0:03:27]}
Rxc1 {[%emt 0:00:25]} 22. Qxc1 {[%emt 0:11:43]} Nxe5 {[%emt 0:00:28]} 23. Bxe5
{[%emt 0:01:18]} f6 {[%emt 0:03:16]} 24. Bc7 {[%emt 0:01:00]} Qd7 {[%emt 0:00:
00]} 25. Bb6 {[%emt 0:04:53]} Bd6 {[%emt 0:03:09]} 26. Qd2 {[%emt 0:06:34]} Rc8
{[%emt 0:00:27]} 27. Rc1 {[%emt 0:01:07]} Rxc1+ {[%emt 0:01:06]} 28. Qxc1 {
[%emt 0:00:25]} Kf7 {[%emt 0:01:52]} 29. Nc5 {[%emt 0:01:21]} Qc6 {[%emt 0:00:
00]} 30. f4 {[%emt 0:01:58]} Bc7 {[%emt 0:02:26]} 31. Bxc7 {[%emt 0:02:14]}
Qxc7 {[%emt 0:00:11]} 32. Nb3 {[%emt 0:00:43]} Qxc1+ {[%emt 0:00:26]} 33. Nxc1
{[%emt 0:00:07]} Bc4 {[%emt 0:00:07]} 34. Kf2 {[%emt 0:01:39]} Ke7 {[%emt 0:00:
00]} 35. g4 {[%emt 0:01:29]} Kd6 {[%emt 0:00:17]} 36. Ne2 {[%emt 0:00:10]} Bxe2
{[%emt 0:00:08]} 37. Kxe2 {[%emt 0:00:05]} Kc6 {[%emt 0:00:11]} 38. Kd3 {
[%emt 0:01:44]} f5 {[%emt 0:00:37]} 39. g5 {[%emt 0:03:20]} Kb5 {[%emt 0:00:25]
} 40. h4 {[%emt 0:00:25]} g6 {[%emt 0:00:28]} 41. Kc2 {[%emt 0:30:25]} Kxa5 {
[%emt 0:30:30]} 42. Kb2 {[%emt 0:00:19]} Kb4 {[%emt 0:00:05]} 43. Ka1 {[%emt 0:
00:00]} Kc3 {[%emt 0:00:09]} 44. Kb1 {[%emt 0:00:16]} Kd3 {[%emt 0:00:05]} 0-1

[Event "44th Chess Olympiad Open 2022"]
[Site "Chennai"]
[Date "2022.07.31"]
[Round "3.81"]
[White "Wane, Al Hassane"]
[Black "Kourakoumba, Florent"]
[Result "1-0"]
[WhiteElo "1750"]
[BlackElo "1677"]
[Annotator "NA RC"]
[PlyCount "131"]
[EventDate "2022.??.??"]
[TimeControl "60"]

1. d4 {[%emt 0:00:02]} e6 {[%emt 0:00:21]} 2. c4 {[%emt 0:00:10]} c5 {[%emt 0:
00:00]} 3. e3 {[%emt 0:00:28]} Nf6 {[%emt 0:00:46]} 4. Nf3 {[%emt 0:00:08]} Be7
{[%emt 0:00:38]} 5. Bd3 {[%emt 0:00:07]} Nc6 {[%emt 0:00:44]} 6. O-O {[%emt 0:
00:00]} b6 {[%emt 0:01:38]} 7. Nc3 {[%emt 0:00:54]} O-O {[%emt 0:00:38]} 8. d5
{[%emt 0:02:18]} Nb4 {[%emt 0:00:31]} 9. d6 {[%emt 0:05:24]} Bxd6 {[%emt 0:00:
00]} 10. Bxh7+ {[%emt 0:00:26]} Nxh7 {[%emt 0:00:34]} 11. Qxd6 {[%emt 0:00:29]}
Bb7 {[%emt 0:00:31]} 12. e4 {[%emt 0:01:29]} Nc6 {[%emt 0:01:16]} 13. Rd1 {
[%emt 0:01:04]} Bc8 {[%emt 0:01:24]} 14. Nb5 {[%emt 0:03:08]} a6 {[%emt 0:00:
00]} 15. Nc3 {[%emt 0:00:54]} Ra7 {[%emt 0:01:32]} 16. Qg3 {[%emt 0:03:12]} f6
{[%emt 0:00:51]} 17. Rd6 {[%emt 0:01:39]} Qe7 {[%emt 0:00:36]} 18. Be3 {
[%emt 0:01:15]} e5 {[%emt 0:00:16]} 19. Rad1 {[%emt 0:00:30]} Nd4 {[%emt 0:00:
00]} 20. Rxb6 {[%emt 0:01:37]} Bb7 {[%emt 0:00:35]} 21. Bxd4 {[%emt 0:01:26]}
cxd4 {[%emt 0:00:29]} 22. Nd5 {[%emt 0:00:14]} Bxd5 {[%emt 0:00:48]} 23. cxd5 {
[%emt 0:00:46]} d6 {[%emt 0:01:16]} 24. h4 {[%emt 0:07:07]} Qc7 {[%emt 0:00:21]
} 25. Rc6 {[%emt 0:02:01]} Qd7 {[%emt 0:00:42]} 26. h5 {[%emt 0:00:05]} Rc8 {
[%emt 0:00:45]} 27. Rdc1 {[%emt 0:00:58]} Rac7 {[%emt 0:00:32]} 28. h6 {
[%emt 0:00:58]} g5 {[%emt 0:01:22]} 29. Qh3 {[%emt 0:07:24]} g4 {[%emt 0:04:23]
} 30. Rxc7 {[%emt 0:00:42]} Rxc7 {[%emt 0:00:59]} 31. Rxc7 {[%emt 0:00:17]}
Qxc7 {[%emt 0:00:51]} 32. Qxg4+ {[%emt 0:00:27]} Kf8 {[%emt 0:00:39]} 33. Kh2 {
[%emt 0:03:07]} d3 {[%emt 0:00:00]} 34. b3 {[%emt 0:05:19]} a5 {[%emt 0:00:00]}
35. Nd2 {[%emt 0:00:51]} Ng5 {[%emt 0:00:07]} 36. f4 {[%emt 0:02:15]} Nh7 {
[%emt 0:02:18]} 37. Nc4 {[%emt 0:00:47]} exf4 {[%emt 0:03:22]} 38. Qxf4 {
[%emt 0:03:27]} Qe7 {[%emt 0:00:46]} 39. Qe3 {[%emt 0:02:17]} Ng5 {[%emt 0:00:
00]} 40. Qxd3 {[%emt 0:00:15]} Nxe4 {[%emt 0:00:40]} 41. Qh3 {[%emt 0:34:53]}
Ng5 {[%emt 0:31:02]} 42. Qc8+ {[%emt 0:03:11]} Kf7 {[%emt 0:00:20]} 43. Qh8 {
[%emt 0:00:43]} Kg6 {[%emt 0:12:52]} 44. Qg7+ {[%emt 0:00:28]} Qxg7 {[%emt 0:
00:00]} 45. hxg7 {[%emt 0:00:07]} Kxg7 {[%emt 0:00:47]} 46. Nxd6 {[%emt 0:00:
00]} Kf8 {[%emt 0:01:09]} 47. Nc4 {[%emt 0:00:20]} Ke7 {[%emt 0:00:26]} 48. Kg3
{[%emt 0:01:02]} Ne4+ {[%emt 0:00:11]} 49. Kf4 {[%emt 0:00:13]} Nc3 {[%emt 0:
00:00]} 50. d6+ {[%emt 0:00:46]} Ke6 {[%emt 0:00:18]} 51. a3 {[%emt 0:00:06]}
Nd5+ {[%emt 0:01:43]} 52. Ke4 {[%emt 0:01:32]} f5+ {[%emt 0:00:13]} 53. Kd4 {
[%emt 0:04:05]} Nf4 {[%emt 0:00:15]} 54. Ne3 {[%emt 0:01:15]} Ne2+ {[%emt 0:00:
00]} 55. Kc5 {[%emt 0:00:26]} f4 {[%emt 0:00:26]} 56. Nd5 {[%emt 0:00:49]} Kd7
{[%emt 0:00:31]} 57. Nb6+ {[%emt 0:00:29]} Kd8 {[%emt 0:00:37]} 58. Kb5 {
[%emt 0:03:19]} Nd4+ {[%emt 0:00:20]} 59. Kxa5 {[%emt 0:00:43]} Nxb3+ {[%emt 0:
00:00]} 60. Kb4 {[%emt 0:00:35]} Nd4 {[%emt 0:00:18]} 61. a4 {[%emt 0:00:22]}
Nf5 {[%emt 0:00:13]} 62. Kc5 {[%emt 0:00:49]} Ne3 {[%emt 0:02:13]} 63. a5 {
[%emt 0:00:39]} Ke8 {[%emt 0:00:47]} 64. a6 {[%emt 0:00:00]} Nxg2 {[%emt 0:00:
00]} 65. a7 {[%emt 0:00:18]} Ne3 {[%emt 0:00:37]} 66. a8=Q+ {[%emt 0:02:01]}
1-0

[Event "44th Chess Olympiad Open 2022"]
[Site "Chennai"]
[Date "2022.07.31"]
[Round "3.81"]
[White "Koualet-Bebondi, Vianney Archeveq"]
[Black "Cisse, Amadou Lamine"]
[Result "1-0"]
[WhiteElo "1679"]
[BlackElo "2005"]
[Annotator "NA RC"]
[PlyCount "155"]
[EventDate "2022.??.??"]
[TimeControl "60"]

1. e4 {[%emt 0:00:07]} c5 {[%emt 0:01:31]} 2. Nc3 {[%emt 0:00:46]} Nc6 {
[%emt 0:00:32]} 3. Bc4 {[%emt 0:00:29]} g6 {[%emt 0:00:59]} 4. Nge2 {[%emt 0:
00:00]} Bg7 {[%emt 0:00:14]} 5. O-O {[%emt 0:00:43]} e6 {[%emt 0:00:29]} 6. d3
{[%emt 0:01:53]} Nge7 {[%emt 0:00:57]} 7. Bf4 {[%emt 0:01:30]} d5 {[%emt 0:00:
00]} 8. exd5 {[%emt 0:00:59]} exd5 {[%emt 0:00:10]} 9. Bb5 {[%emt 0:01:19]} O-O
{[%emt 0:01:06]} 10. Bxc6 {[%emt 0:00:58]} Nxc6 {[%emt 0:05:00]} 11. Qd2 {
[%emt 0:02:22]} a6 {[%emt 0:04:40]} 12. Bh6 {[%emt 0:00:50]} Be6 {[%emt 0:00:
00]} 13. Bxg7 {[%emt 0:01:05]} Kxg7 {[%emt 0:00:04]} 14. d4 {[%emt 0:01:53]} c4
{[%emt 0:03:31]} 15. a3 {[%emt 0:01:16]} Qf6 {[%emt 0:02:06]} 16. Na4 {[%emt 0:
00:00]} b5 {[%emt 0:03:30]} 17. Nc5 {[%emt 0:01:35]} Rfe8 {[%emt 0:07:58]} 18.
Rae1 {[%emt 0:01:52]} a5 {[%emt 0:04:15]} 19. c3 {[%emt 0:00:31]} h6 {[%emt 0:
00:00]} 20. Nf4 {[%emt 0:00:49]} b4 {[%emt 0:05:54]} 21. Qe3 {[%emt 0:05:52]}
bxc3 {[%emt 0:06:40]} 22. bxc3 {[%emt 0:00:27]} Qf5 {[%emt 0:00:54]} 23. Nfxe6+
{[%emt 0:03:23]} fxe6 {[%emt 0:00:05]} 24. f4 {[%emt 0:01:07]} Rab8 {[%emt 0:
00:00]} 25. Re2 {[%emt 0:01:39]} Kf7 {[%emt 0:02:52]} 26. Qf3 {[%emt 0:01:08]}
h5 {[%emt 0:02:19]} 27. h3 {[%emt 0:00:26]} Re7 {[%emt 0:05:28]} 28. Ref2 {
[%emt 0:01:38]} h4 {[%emt 0:00:43]} 29. Re2 {[%emt 0:02:09]} Qf6 {[%emt 0:00:
00]} 30. Rfe1 {[%emt 0:01:59]} a4 {[%emt 0:02:19]} 31. Qg4 {[%emt 0:07:13]}
Rbe8 {[%emt 0:06:54]} 32. Re3 {[%emt 0:01:39]} Na5 {[%emt 0:01:20]} 33. Nxa4 {
[%emt 0:01:35]} Nb3 {[%emt 0:00:12]} 34. Nb2 {[%emt 0:00:41]} Rb7 {[%emt 0:00:
00]} 35. Na4 {[%emt 0:07:09]} Ra7 {[%emt 0:01:15]} 36. Nb6 {[%emt 0:00:30]}
Rae7 {[%emt 0:04:47]} 37. a4 {[%emt 0:02:43]} Rd8 {[%emt 0:02:59]} 38. Qg5 {
[%emt 0:03:36]} Nd2 {[%emt 0:03:09]} 39. a5 {[%emt 0:02:41]} Ne4 {[%emt 0:00:
00]} 40. Qe5 {[%emt 0:04:35]} Qxe5 {[%emt 0:01:51]} 41. fxe5 {[%emt 0:30:37]}
Rc7 {[%emt 0:31:40]} 42. Rf3+ {[%emt 0:02:21]} Kg7 {[%emt 0:01:12]} 43. Re2 {
[%emt 0:01:58]} Rf8 {[%emt 0:00:00]} 44. Rfe3 {[%emt 0:00:00]} Rcf7 {[%emt 0:
00:00]} 45. Kh2 {[%emt 0:00:00]} Ng3 {[%emt 0:00:00]} 46. Rxg3 {[%emt 0:00:00]}
hxg3+ {[%emt 0:00:00]} 47. Kxg3 {[%emt 0:00:00]} Ra7 {[%emt 0:00:00]} 48. a6 {
[%emt 0:00:00]} Rxa6 {[%emt 0:00:00]} 49. Nd7 {[%emt 0:00:00]} Rf1 {[%emt 0:00:
00]} 50. Rb2 {[%emt 0:00:00]} Ra7 {[%emt 0:00:00]} 51. Nc5 {[%emt 0:00:00]} Re7
{[%emt 0:00:00]} 52. Rb6 {[%emt 0:00:00]} Kf7 {[%emt 0:00:00]} 53. Ra6 {
[%emt 0:00:00]} Rc1 {[%emt 0:00:00]} 54. Ra3 {[%emt 0:00:00]} g5 {[%emt 0:00:
00]} 55. Kg4 {[%emt 0:00:00]} Rc2 {[%emt 0:00:00]} 56. g3 {[%emt 0:00:00]} Kg6
{[%emt 0:00:00]} 57. Ra6 {[%emt 0:00:00]} Kf7 {[%emt 0:00:08]} 58. Ra3 {
[%emt 0:00:00]} Rg2 {[%emt 0:00:28]} 59. Kf3 {[%emt 0:00:00]} Rg1 {[%emt 0:00:
00]} 60. Kg4 {[%emt 0:00:00]} Rg2 {[%emt 0:00:53]} 61. Ra6 {[%emt 0:00:00]} Rc2
{[%emt 0:01:54]} 62. Ra3 {[%emt 0:00:00]} Re8 {[%emt 0:01:58]} 63. Kxg5 {
[%emt 0:00:00]} Rg8+ {[%emt 0:00:18]} 64. Kf4 {[%emt 0:00:00]} Rf2+ {[%emt 0:
00:00]} 65. Ke3 {[%emt 0:00:00]} Rc2 {[%emt 0:01:24]} 66. Kf3 {[%emt 0:00:40]}
Rh8 {[%emt 0:02:06]} 67. h4 {[%emt 0:00:39]} Rf8 {[%emt 0:00:21]} 68. Kg4 {
[%emt 0:01:03]} Rg8+ {[%emt 0:00:01]} 69. Kh3 {[%emt 0:01:27]} Rb8 {[%emt 0:00:
00]} 70. h5 {[%emt 0:01:35]} Rb6 {[%emt 0:02:00]} 71. Kg4 {[%emt 0:01:12]} Rg2
{[%emt 0:00:42]} 72. Ra7+ {[%emt 0:00:25]} Kg8 {[%emt 0:00:07]} 73. Nd7 {
[%emt 0:01:13]} Rb3 {[%emt 0:01:08]} 74. Nf6+ {[%emt 0:01:56]} Kf8 {[%emt 0:00:
00]} 75. h6 {[%emt 0:01:29]} Rxc3 {[%emt 0:01:16]} 76. Nh5 {[%emt 0:00:36]} Rd3
{[%emt 0:00:26]} 77. h7 {[%emt 0:00:41]} Rxd4+ {[%emt 0:00:09]} 78. Kh3 {
[%emt 0:00:24]} 1-0

[Event "44th Chess Olympiad Open 2022"]
[Site "Chennai"]
[Date "2022.07.31"]
[Round "3.82"]
[White "Bah, Ebrima"]
[Black "Mohamed Ali Djama"]
[Result "1-0"]
[WhiteElo "2078"]
[BlackElo "1629"]
[Annotator "NA"]
[PlyCount "171"]
[EventDate "2022.??.??"]
[TimeControl "60"]

1. e4 {[%emt 0:00:03]} e5 {[%emt 0:00:04]} 2. Nf3 {[%emt 0:00:05]} Nc6 {
[%emt 0:00:04]} 3. Bb5 {[%emt 0:00:49]} Nf6 {[%emt 0:00:11]} 4. O-O {[%emt 0:
00:00]} Bc5 {[%emt 0:00:34]} 5. c3 {[%emt 0:01:56]} a6 {[%emt 0:05:10]} 6. Ba4
{[%emt 0:01:59]} b5 {[%emt 0:00:22]} 7. Bb3 {[%emt 0:00:32]} d6 {[%emt 0:01:27]
} 8. d4 {[%emt 0:00:28]} Bb6 {[%emt 0:00:51]} 9. Bg5 {[%emt 0:01:39]} Bg4 {
[%emt 0:00:36]} 10. Bd5 {[%emt 0:00:50]} Qd7 {[%emt 0:08:07]} 11. dxe5 {
[%emt 0:04:30]} Nxe5 {[%emt 0:04:08]} 12. Nxe5 {[%emt 0:01:14]} dxe5 {[%emt 0:
00:00]} 13. Qe1 {[%emt 0:04:40]} Nxd5 {[%emt 0:00:46]} 14. exd5 {[%emt 0:00:19]
} Qxd5 {[%emt 0:00:14]} 15. c4 {[%emt 0:03:21]} Qe6 {[%emt 0:01:24]} 16. cxb5 {
[%emt 0:01:53]} axb5 {[%emt 0:00:03]} 17. Qb4 {[%emt 0:01:05]} c6 {[%emt 0:00:
00]} 18. Nc3 {[%emt 0:01:05]} f6 {[%emt 0:00:41]} 19. Bh4 {[%emt 0:02:16]} Kf7
{[%emt 0:00:46]} 20. a4 {[%emt 0:04:24]} Ba5 {[%emt 0:04:44]} 21. Qc5 {[%emt 0:
00:00]} Bxc3 {[%emt 0:02:54]} 22. Qxc3 {[%emt 0:01:02]} Rhd8 {[%emt 0:02:39]}
23. f3 {[%emt 0:01:05]} Bf5 {[%emt 0:00:08]} 24. a5 {[%emt 0:02:09]} Rd3 {
[%emt 0:02:15]} 25. Qc5 {[%emt 0:02:11]} Qd6 {[%emt 0:03:10]} 26. Rfc1 {
[%emt 0:04:08]} Rd1+ {[%emt 0:00:14]} 27. Rxd1 {[%emt 0:02:08]} Qxc5+ {[%emt 0:
00:00]} 28. Bf2 {[%emt 0:00:56]} Qb4 {[%emt 0:01:19]} 29. a6 {[%emt 0:00:56]}
c5 {[%emt 0:00:56]} 30. a7 {[%emt 0:00:41]} Bc2 {[%emt 0:08:10]} 31. Rdc1 {
[%emt 0:00:25]} Qc4 {[%emt 0:01:12]} 32. b3 {[%emt 0:00:33]} Qxb3 {[%emt 0:00:
00]} 33. Bxc5 {[%emt 0:00:25]} Qd3 {[%emt 0:01:43]} 34. Kh1 {[%emt 0:02:02]}
Ba4 {[%emt 0:00:20]} 35. h3 {[%emt 0:00:44]} Rc8 {[%emt 0:04:47]} 36. Bb6 {
[%emt 0:02:48]} Qd7 {[%emt 0:01:36]} 37. Rc7 {[%emt 0:00:30]} Rxc7 {[%emt 0:00:
00]} 38. a8=Q {[%emt 0:00:50]} Rc8 {[%emt 0:00:18]} 39. Qe4 {[%emt 0:00:35]}
Qc6 {[%emt 0:00:08]} 40. Qg4 {[%emt 0:02:18]} g6 {[%emt 0:01:56]} 41. Be3 {
[%emt 0:31:55]} f5 {[%emt 0:30:29]} 42. Qh4 {[%emt 0:00:45]} Kg8 {[%emt 0:00:
00]} 43. Rc1 {[%emt 0:01:34]} Qd7 {[%emt 0:00:48]} 44. Rxc8+ {[%emt 0:01:04]}
Qxc8 {[%emt 0:00:01]} 45. Qe7 {[%emt 0:01:05]} f4 {[%emt 0:00:13]} 46. Bc5 {
[%emt 0:00:28]} Qf5 {[%emt 0:02:40]} 47. Bd6 {[%emt 0:00:41]} Bb3 {[%emt 0:00:
00]} 48. Bxe5 {[%emt 0:00:55]} Qf7 {[%emt 0:00:14]} 49. Qd8+ {[%emt 0:01:33]}
Qf8 {[%emt 0:00:08]} 50. Qc7 {[%emt 0:01:05]} Bc4 {[%emt 0:00:27]} 51. Bxf4 {
[%emt 0:00:52]} Qf7 52. Qd8+ {[%emt 0:03:53]} Qf8 {[%emt 0:01:16]} 53. Qd4 {
[%emt 0:00:57]} Qf7 {[%emt 0:00:25]} 54. Bh6 {[%emt 0:04:00]} Qe7 {[%emt 0:00:
00]} 55. Qf4 {[%emt 0:03:35]} Qe1+ {[%emt 0:01:12]} 56. Kh2 {[%emt 0:00:19]}
Qe7 {[%emt 0:00:01]} 57. Qb8+ {[%emt 0:01:38]} Kf7 {[%emt 0:00:34]} 58. Qh8 {
[%emt 0:00:57]} Ke6 {[%emt 0:00:04]} 59. f4 {[%emt 0:00:56]} Kd5 {[%emt 0:00:
00]} 60. Bg5 {[%emt 0:00:36]} Qf7 {[%emt 0:00:56]} 61. Qe5+ {[%emt 0:01:02]}
Kc6 {[%emt 0:00:05]} 62. Be7 {[%emt 0:01:14]} Qe6 {[%emt 0:00:21]} 63. Qc5+ {
[%emt 0:02:25]} Kb7 {[%emt 0:00:39]} 64. Bd8 {[%emt 0:02:07]} Qd7 {[%emt 0:00:
00]} 65. Qb6+ {[%emt 0:03:05]} Kc8 {[%emt 0:00:00]} 66. Bf6 {[%emt 0:00:35]}
Bd5 {[%emt 0:01:13]} 67. Be5 {[%emt 0:02:15]} Bb7 {[%emt 0:00:05]} 68. Qf6 {
[%emt 0:02:05]} Ba8 {[%emt 0:02:30]} 69. Qh8+ {[%emt 0:00:23]} Qd8 {[%emt 0:00:
00]} 70. Qxh7 {[%emt 0:00:11]} Be4 {[%emt 0:00:10]} 71. Qh8 {[%emt 0:00:51]} b4
{[%emt 0:00:05]} 72. g4 {[%emt 0:00:20]} b3 {[%emt 0:00:09]} 73. Kg3 {[%emt 0:
00:00]} Qxh8 {[%emt 0:00:09]} 74. Bxh8 {[%emt 0:00:08]} Kd7 {[%emt 0:00:02]}
75. Kh4 {[%emt 0:00:19]} Ke6 {[%emt 0:00:03]} 76. Kg5 {[%emt 0:00:35]} Kf7 {
[%emt 0:00:27]} 77. f5 {[%emt 0:00:07]} Bc2 {[%emt 0:00:17]} 78. Bb2 {[%emt 0:
00:00]} Be4 {[%emt 0:00:01]} 79. h4 {[%emt 0:00:25]} Bd3 {[%emt 0:00:29]} 80.
fxg6+ {[%emt 0:00:15]} Bxg6 {[%emt 0:00:01]} 81. h5 {[%emt 0:00:17]} Bc2 {
[%emt 0:00:04]} 82. Kh6 {[%emt 0:00:34]} Bd3 {[%emt 0:00:15]} 83. g5 {[%emt 0:
00:00]} Bf5 {[%emt 0:00:06]} 84. g6+ {[%emt 0:00:08]} Kg8 {[%emt 0:00:01]} 85.
Kg5 {[%emt 0:00:08]} Bd3 {[%emt 0:00:07]} 86. h6 {[%emt 0:00:13]} 1-0

[Event "44th Chess Olympiad Open 2022"]
[Site "Chennai"]
[Date "2022.07.31"]
[Round "3.82"]
[White "Garber, Ousainou"]
[Black "Mohamed Ali Dima"]
[Result "0-1"]
[WhiteElo "1772"]
[BlackElo "1582"]
[Annotator "NA RC"]
[PlyCount "36"]
[EventDate "2022.??.??"]
[TimeControl "60"]

1. d4 {[%emt 0:00:05]} d5 {[%emt 0:00:17]} 2. Nf3 {[%emt 0:00:30]} Bf5 {
[%emt 0:00:26]} 3. e3 {[%emt 0:00:29]} e6 {[%emt 0:01:01]} 4. c4 {[%emt 0:00:
00]} c6 {[%emt 0:00:08]} 5. cxd5 {[%emt 0:00:26]} cxd5 {[%emt 0:00:37]} 6. Bb5+
{[%emt 0:01:13]} Nd7 {[%emt 0:00:43]} 7. O-O {[%emt 0:00:25]} Ngf6 {[%emt 0:00:
00]} 8. Ne5 {[%emt 0:00:38]} a6 {[%emt 0:00:22]} 9. Be2 {[%emt 0:03:08]} Bd6 {
[%emt 0:00:22]} 10. f4 {[%emt 0:01:07]} Ne4 {[%emt 0:02:13]} 11. Nc3 {[%emt 0:
00:00]} Ndf6 {[%emt 0:03:13]} 12. Kh1 {[%emt 0:03:23]} h5 {[%emt 0:00:48]} 13.
Qb3 {[%emt 0:07:01]} Bxe5 {[%emt 0:00:40]} 14. dxe5 {[%emt 0:04:19]} Ng4 {
[%emt 0:00:22]} 15. Nxe4 {[%emt 0:04:26]} Bxe4 {[%emt 0:00:34]} 16. h3 {
[%emt 0:01:38]} Qh4 {[%emt 0:00:08]} 17. Kg1 {[%emt 0:00:41]} Qg3 {[%emt 0:00:
00]} 18. Bf3 {[%emt 0:00:53]} Qh2# {[%emt 0:00:03]} 0-1